Workbook

Sheet Sheet1
A3: EJERCICICIO FISCAL 2024
A4: UNIDAD OPERATIVA DE CONTRATACIONES
A5: CIRCUNSCRIPCIONES DEL INTERIOR
A6: DETALLE DE PAC POR MODALIDAD
A7: ITEMS | B7: MODALIDAD | C7: CANTIDAD | D7: MONTO | E7: % (CANT.)
A8: 1 | B8: CONTRATACION DIRECTA | C8: =+C40+C51+C62+C73+C84+C95+C106+C117+C128+C139+C150+C161+C172+C183+C194 -> 3 | D8: 178000000 | E8: =+C8/C15 -> 0.01016949153 | J8: =+[1]INTERIOR!C21-Sheet1!C15 -> 0 | K8: =+[1]INTERIOR!D21-Sheet1!D15 -> 0
A9: 2 | B9: CONCURSO DE OFERTA | C9: 5 | D9: 3183652666 | E9: =+C9/C15 -> 0.01694915254
A10: 3 | B10: LOCACION DE INMUEBLE | C10: 2 | D10: 540000000 | E10: =+C10/C15 -> 0.006779661017
A11: 4 | B11: LICITACION PUBLICA NACIONAL | C11: 16 | D11: 23421857972 | E11: =+C11/C15 -> 0.05423728814
A12: 5 | B12: CONTRATACION EXCEPCION | C12: 2 | D12: 217000000 | E12: =+C12/C15 -> 0.006779661017
A13: 6 | B13: LICITACION MENOR CUANTIA | C13: 175 | D13: 15831453527 | E13: =+C13/C15 -> 0.593220339
A14: 7 | B14: CONVENIO MARCO | C14: =+C46+C57+C68+C79+C90+C101+C112+C123+C134+C145+C156+C167+C178+C189+C200 -> 92 | D14: 3190621359 | E14: =+C14/C15 -> 0.3118644068
A15: TOTAL | C15: =SUM(C8:C14) -> 295 | D15: =SUM(D8:D14) -> 46562585524 | E15: =SUM(E8:E14) -> 1
A38: GUAIRA
A39: ITEMS | B39: MODALIDAD | C39: CANTIDAD | D39: MONTO
A40: 1 | B40: CD | C40: 0 | D40: 0
A41: 2 | B41: CO | C41: 0 | D41: 0 | F41: OK
A42: 3 | B42: LC | C42: 0 | D42: 0
A43: 4 | B43: LPN | C43: 1 | D43: 936000000
A44: 5 | B44: CE | C44: 0 | D44: 0
A45: 6 | B45: LMC | C45: 12 | D45: 296866970
A46: 7 | B46: CM | C46: 8 | D46: 299114384
C47: =SUM(C40:C46) -> 21 | D47: =SUM(D40:D46) -> 1531981354
A49: ITAPUA
A50: ITEMS | B50: MODALIDAD | C50: CANTIDAD | D50: MONTO
A51: 1 | B51: CD | C51: 3 | D51: 178000000
A52: 2 | B52: CO | C52: 0 | D52: 0 | F52: OK
A53: 3 | B53: LC | C53: 1 | D53: 480000000
A54: 4 | B54: LPN | C54: 1 | D54: 2678419048
A55: 5 | B55: CE | C55: 0 | D55: 0
A56: 6 | B56: LMC | C56: 11 | D56: 1373000000
A57: 7 | B57: CM | C57: 9 | D57: 236165000
C58: =SUM(C51:C57) -> 25 | D58: =SUM(D51:D57) -> 4945584048
A60: CONCEPCION
A61: ITEMS | B61: MODALIDAD | C61: CANTIDAD | D61: MONTO
A62: 1 | B62: CD | C62: 0 | D62: 0
A63: 2 | B63: CO | C63: 0 | D63: 0
A64: 3 | B64: LC | C64: 0 | D64: 0 | F64: OK
A65: 4 | B65: LPN | C65: 0 | D65: 0
A66: 5 | B66: CE | C66: 0 | D66: 0
A67: 6 | B67: LMC | C67: 12 | D67: 404674550
A68: 7 | B68: CM | C68: 16 | D68: 166763800
C69: =SUM(C62:C68) -> 28 | D69: =SUM(D62:D68) -> 571438350
A71: AMAMBAY
A72: ITEMS | B72: MODALIDAD | C72: CANTIDAD | D72: MONTO
A73: 1 | B73: CD | C73: 0 | D73: 0
A74: 2 | B74: CO | C74: 0 | D74: 0 | F74: OK
A75: 3 | B75: LC | C75: 0 | D75: 0
A76: 4 | B76: LPN | C76: 0 | D76: 0
A77: 5 | B77: CE | C77: 1 | D77: 150000000
A78: 6 | B78: LMC | C78: 12 | D78: 689764000
A79: 7 | B79: CM | C79: 5 | D79: 133886048
C80: =SUM(C73:C79) -> 18 | D80: =SUM(D73:D79) -> 973650048
A82: ALTO PARANA
A83: ITEMS | B83: MODALIDAD | C83: CANTIDAD | D83: MONTO
A84: 1 | B84: CD | C84: 0 | D84: 0
A85: 2 | B85: CO | C85: 5 | D85: 3183652666 | F85: OK
A86: 3 | B86: LC | C86: 0 | D86: 0
A87: 4 | B87: LPN | C87: 2 | D87: 2967399369
A88: 5 | B88: CE | C88: 0 | D88: 0
A89: 6 | B89: LMC | C89: 12 | D89: 2426012738
A90: 7 | B90: CM | C90: 4 | D90: 183390779
C91: =SUM(C84:C90) -> 23 | D91: =SUM(D84:D90) -> 8760455552
A93: CAAGUAZU
A94: ITEMS | B94: MODALIDAD | C94: CANTIDAD | D94: MONTO
A95: 1 | B95: CD | C95: 0 | D95: 0
A96: 2 | B96: CO | C96: 0 | D96: 0 | F96: OK
A97: 3 | B97: LC | C97: 0 | D97: 0
A98: 4 | B98: LPN | C98: 2 | D98: 2345713355
A99: 5 | B99: CE | C99: 1 | D99: 67000000
A100: 6 | B100: LMC | C100: 13 | D100: 1006645000
A101: 7 | B101: CM | C101: 6 | D101: 171891690
C102: =SUM(C95:C101) -> 22 | D102: =SUM(D95:D101) -> 3591250045
A104: ÑEEMBUCU
A105: ITEMS | B105: MODALIDAD | C105: CANTIDAD | D105: MONTO
A106: 1 | B106: CD | C106: 0 | D106: 0
A107: 2 | B107: CO | C107: 0 | D107: 0 | F107: OK
A108: 3 | B108: LC | C108: 0 | D108: 0
A109: 4 | B109: LPN | C109: 2 | D109: 2203030200 | F109: EX: SI | H109: 1 | I109: 160045500
A110: 5 | B110: CE | C110: 0 | D110: 0 | F110: EE: SI | H110: 1 | I110: 24502500
A111: 6 | B111: LMC | C111: 9 | D111: 1002573300 | I111: =SUM(I109:I110) -> 184548000
A112: 7 | B112: CM | C112: 3 | D112: 64711000
C113: =SUM(C106:C112) -> 14 | D113: =SUM(D106:D112) -> 3270314500
A115: MISIONES
A116: ITEMS | B116: MODALIDAD | C116: CANTIDAD | D116: MONTO
A117: 1 | B117: CD | C117: 0 | D117: 0
A118: 2 | B118: CO | C118: 0 | D118: 0
A119: 3 | B119: LC | C119: 0 | D119: 0 | F119: OK
A120: 4 | B120: LPN | C120: 0 | D120: 0
A121: 5 | B121: CE | C121: 0 | D121: 0
A122: 6 | B122: LMC | C122: 6 | D122: 808228000
A123: 7 | B123: CM | C123: 7 | D123: 125168000
C124: =SUM(C117:C123) -> 13 | D124: =SUM(D117:D123) -> 933396000
A126: PARAGUARI
A127: ITEMS | B127: MODALIDAD | C127: CANTIDAD | D127: MONTO
A128: 1 | B128: CD | C128: 0 | D128: 0
A129: 2 | B129: CO | C129: 0 | D129: 0 | F129: OK
A130: 3 | B130: LC | C130: 0 | D130: 0
A131: 4 | B131: LPN | C131: 0 | D131: 0
A132: 5 | B132: CE | C132: 0 | D132: 0
A133: 6 | B133: LMC | C133: 9 | D133: 670008938
A134: 7 | B134: CM | C134: 2 | D134: 100055820
C135: =SUM(C128:C134) -> 11 | D135: =SUM(D128:D134) -> 770064758
A137: CAAZAPA
A138: ITEMS | B138: MODALIDAD | C138: CANTIDAD | D138: MONTO
A139: 1 | B139: CD | C139: 0 | D139: 0
A140: 2 | B140: CO | C140: 0 | D140: 0 | F140: OK
A141: 3 | B141: LC | C141: 0 | D141: 0
A142: 4 | B142: LPN | C142: 1 | D142: 2012256000
A143: 5 | B143: CE | C143: 0 | D143: 0
A144: 6 | B144: LMC | C144: 5 | D144: 423904147
A145: 7 | B145: CM | C145: 7 | D145: 143811190
C146: =SUM(C139:C145) -> 13 | D146: =SUM(D139:D145) -> 2579971337
A148: SAN PEDRO
A149: ITEMS | B149: MODALIDAD | C149: CANTIDAD | D149: MONTO | F149: OK
A150: 1 | B150: CD | C150: 0 | D150: 0
A151: 2 | B151: CO | C151: 0 | D151: 0
A152: 3 | B152: LC | C152: 0 | D152: 0
A153: 4 | B153: LPN | C153: 0 | D153: 0
A154: 5 | B154: CE | C154: 0 | D154: 0
A155: 6 | B155: LMC | C155: 14 | D155: 1464885000
A156: 7 | B156: CM | C156: 0 | D156: 0
C157: =SUM(C150:C156) -> 14 | D157: =SUM(D150:D156) -> 1464885000
A159: CORDILLERA
A160: ITEMS | B160: MODALIDAD | C160: CANTIDAD | D160: MONTO | F160: OK
A161: 1 | B161: CD | C161: 0 | D161: 0
A162: 2 | B162: CO | C162: 0 | D162: 0
A163: 3 | B163: LC | C163: 1 | D163: 60000000 | F163: EX: SI | H163: 1 | I163: 40000000
A164: 4 | B164: LPN | C164: 1 | D164: 999840000 | F164: EE: SI | H164: 1 | I164: 72003300
A165: 5 | B165: CE | C165: 0 | D165: 0 | I165: =SUM(I163:I164) -> 112003300
A166: 6 | B166: LMC | C166: 15 | D166: 1505500000
A167: 7 | B167: CM | C167: 4 | D167: 103000000
C168: =SUM(C161:C167) -> 21 | D168: =SUM(D161:D167) -> 2668340000
A170: CANINDEYU
A171: ITEMS | B171: MODALIDAD | C171: CANTIDAD | D171: MONTO | F171: OK
A172: 1 | B172: CD | C172: 0 | D172: 0
A173: 2 | B173: CO | C173: 0 | D173: 0
A174: 3 | B174: LC | C174: 0 | D174: 0
A175: 4 | B175: LPN | C175: 0 | D175: 0
A176: 5 | B176: CE | C176: 0 | D176: 0
A177: 6 | B177: LMC | C177: 12 | D177: 483126588
A178: 7 | B178: CM | C178: 4 | D178: 112291698
C179: =SUM(C172:C178) -> 16 | D179: =SUM(D172:D178) -> 595418286
A181: CENTRAL
A182: ITEMS | B182: MODALIDAD | C182: CANTIDAD | D182: MONTO | F182: OK
A183: 1 | B183: CD | C183: 0 | D183: 0
A184: 2 | B184: CO | C184: 0 | D184: 0
A185: 3 | B185: LC | C185: 0 | D185: 0 | F185: EE: NO | I185: 0
A186: 4 | B186: LPN | C186: 6 | D186: 9279200000 | F186: EX: NO | I186: 0
A187: 5 | B187: CE | C187: 0 | D187: 0
A188: 6 | B188: LMC | C188: 19 | D188: 2320000000
A189: 7 | B189: CM | C189: 6 | D189: 1163864000 | F189: 0
C190: =SUM(C183:C189) -> 31 | D190: =SUM(D183:D189) -> 12763064000
A192: ALTO PARAGUAY
A193: ITEMS | B193: MODALIDAD | C193: CANTIDAD | D193: MONTO | F193: OK
A194: 1 | B194: CD | C194: 0 | D194: 0
A195: 2 | B195: CO | C195: 0 | D195: 0
A196: 3 | B196: LC | C196: 0 | D196: 0
A197: 4 | B197: LPN | C197: 0 | D197: 0 | F197: EX: NO | I197: 0
A198: 5 | B198: CE | C198: 0 | D198: 0
A199: 6 | B199: LMC | C199: 14 | D199: 956264296
A200: 7 | B200: CM | C200: 11 | D200: 186507950
C201: =SUM(C194:C200) -> 25 | D201: =SUM(D194:D200) -> 1142772246
